bitfinex/quotes_ETHUSD_20251224
["timestamp","ask_amount","ask_price","bid_price","bid_amount"]
[1766581125954,2.1515,2937.9,2937.4,0.001]
[1766581126154,2.1515,2938.0,2937.4,1.2371]
[1766581126893,2.19404739,2937.9,2937.4,0.001]
[1766581127359,2.1515,2937.8,2937.4,0.001]
[1766581128153,2.1515,2937.8,2937.3,0.001]
[1766581128458,2.1515,2937.8,2937.0,0.001]
[1766581128459,2.19405029,2937.7,2937.0,0.001]
[1766581128965,2.19405029,2937.7,2937.1,1.2408]
[1766581130083,2.1515,2937.6,2937.1,1.2408]
[1766581130470,2.1515,2937.6,2937.0,0.001]
[1766581131390,3.40425531,2937.5,2937.0,0.001]
[1766581131581,2.1515,2937.4,2937.0,0.001]
[1766581135690,2.1515,2937.4,2936.9,0.001]
[1766581135894,2.1515,2937.3,2936.9,0.001]
[1766581137567,2.1515,2937.3,2936.8,0.001]
[1766581137762,2.1515,2937.3,2936.7,0.893]
[1766581137763,2.1515,2937.2,2936.6,0.001]
[1766581138797,2.1515,2937.2,2936.7,1.2529]
[1766581141500,2.1515,2937.2,2936.6,1.2554]
[1766581143391,2.1515,2937.2,2936.7,1.2559]
[1766581145477,2.1515,2937.2,2936.7,3.40517295]
[1766581145804,2.29795319,2937.5,2936.8,1.2574]
[1766581145977,5.70204703,2937.7,2937.0,1.2581]
[1766581146299,5.65949674,2937.7,2937.0,1.2581]
[1766581146892,2.2554,2937.7,2937.0,1.2581]
[1766581147094,5.65944096,2937.7,2937.0,1.2581]
[1766581147405,2.2554,2937.6,2937.0,1.2591]
[1766581147699,2.2554,2937.6,2937.0,0.001]
[1766581147899,2.2554,2937.5,2937.0,0.001]
[1766581149408,5.65965615,2937.5,2937.0,0.001]
[1766581149606,2.2554,2937.4,2937.0,0.001]
[1766581154911,2.2554,2937.3,2936.9,0.893]
[1766581156685,2.2554,2937.3,2936.6,0.001]
[1766581156883,2.2554,2937.3,2937.0,0.001]
[1766581157086,2.2554,2937.3,2936.6,0.001]
[1766581157386,2.2554,2937.3,2936.6,5.56788704]
[1766581157796,2.2554,2937.3,2936.7,2.1632]
[1766581157982,2.2554,2937.3,2936.7,5.56836678]
[1766581158188,2.2554,2937.3,2936.7,6.46594064]
[1766581158715,2.2554,2937.3,2936.7,3.06077386]
[1766581163315,4.29630004,2937.5,2936.8,2.1712]
[1766581163519,0.892,2937.5,2936.8,2.1712]
[1766581163889,3.1474,2937.5,2936.8,2.1712]
[1766581164089,2.2554,2937.4,2936.7,7.87096664]
[1766581164401,2.2554,2937.4,2936.7,6.63850901]
[1766581165640,2.2554,2937.4,2936.7,7.87098806]
[1766581165933,2.2554,2937.4,2936.8,2.1772]
[1766581167027,0.892,2937.5,2937.1,2.1802]
[1766581171108,3.1229,2937.5,2937.1,2.1802]
[1766581172041,2.1797,2937.4,2936.8,0.001]
[1766581172351,2.1797,2937.4,2936.8,2.1881]
[1766581172549,2.1797,2937.4,2936.8,3.19410868]
[1766581173839,2.1797,2937.4,2936.8,1.00700868]
[1766581174045,2.1797,2937.4,2936.9,2.1898]
[1766581176246,2.1797,2937.4,2936.8,0.001]
[1766581176446,2.1797,2937.3,2936.8,0.001]
[1766581177749,4.33885459,2937.5,2936.9,2.195]
[1766581177946,0.892,2937.5,2936.9,2.195]
[1766581178140,2.1797,2937.4,2936.9,2.195]
[1766581178744,2.1797,2937.3,2936.8,0.001]
[1766581180418,2.1797,2937.3,2936.9,0.001]
[1766581181955,2.1797,2937.3,2936.9,2.201]
[1766581186672,2.1797,2937.3,2936.9,0.001]
[1766581186845,0.65205359,2937.3,2936.9,0.001]
[1766581187051,2.2436,2937.2,2936.9,0.001]
[1766581201487,2.1953,2937.1,2936.8,0.001]
[1766581204598,4.46580901,2936.9,2936.6,0.001]
[1766581204806,2.1953,2936.8,2936.2,0.001]
[1766581205091,2.1953,2936.8,2936.2,3.25254476]
[1766581205786,0.04256043,2937.0,2936.3,4.46580901]
[1766581206091,0.892,2937.2,2936.6,4.46580901]
[1766581206392,0.93455753,2937.2,2936.7,2.2303]
[1766581207880,0.93655753,2937.2,2936.7,2.2303]
[1766581208876,0.04455753,2937.2,2936.7,2.2303]
[1766581209189,0.002,2937.2,2936.7,2.2303]
[1766581209394,2.1973,2937.2,2936.7,2.2303]
[1766581209594,2.8511281,2937.2,2936.7,2.2303]
[1766581210363,2.1973,2937.2,2936.7,2.2303]
[1766581214995,2.1973,2937.2,2936.6,0.001]
[1766581215296,2.1953,2937.1,2936.6,0.001]
[1766581216188,2.23785898,2937.1,2936.6,0.001]
[1766581219599,2.1953,2937.1,2936.6,0.001]
[1766581231329,3.1862,2937.0,2936.6,0.001]
[1766581231563,2.2932,2936.9,2936.5,0.001]
[1766581232040,2.2932,2936.9,2936.3,0.1362999]
[1766581232346,2.2932,2936.7,2936.3,0.1362999]
[1766581232551,2.52677633,2936.6,2936.3,0.1362999]
[1766581233331,2.52677633,2936.6,2936.2,2.2518]
[1766581233831,2.52677633,2936.6,2936.2,0.001]
[1766581235230,2.33576768,2936.5,2936.2,0.001]
[1766581235400,2.2932,2936.5,2936.2,0.001]
[1766581241537,2.63943411,2936.5,2936.2,0.001]
[1766581241735,2.3473,2936.4,2936.0,0.001]
[1766581241937,2.3473,2936.4,2935.9,0.001]
[1766581242139,2.3473,2936.2,2935.8,0.001]
[1766581242315,2.3473,2936.0,2935.6,0.001]
[1766581242843,2.3473,2936.0,2935.5,0.001]
[1766581244736,2.3473,2935.8,2935.5,0.001]
[1766581245241,2.3473,2935.8,2935.3,2.2689]
[1766581246525,2.3473,2935.8,2935.5,0.001]
[1766581246839,2.92690033,2935.8,2935.5,0.001]
[1766581248438,2.92690033,2935.8,2935.0,2.2748]
[1766581248439,2.3473,2935.6,2935.0,2.2748]
[1766581248736,0.04258218,2935.5,2935.1,2.2744]
[1766581251742,2.38988218,2935.5,2935.1,2.2744]
[1766581253844,2.38988218,2935.5,2935.0,0.001]
[1766581258148,2.38988218,2935.5,2935.1,2.2796]
[1766581258448,0.893,2935.6,2935.1,2.2796]
[1766581258958,0.893,2935.7,2935.2,2.2801]
[1766581259627,3.2403,2935.7,2935.2,2.2801]
[1766581263154,2.3473,2935.7,2935.2,2.2801]
[1766581263348,3.2403,2935.7,2935.2,2.2801]
[1766581263547,3.64493371,2936.1,2935.4,4.4672201]
[1766581263728,6.41,2936.8,2935.5,2.26426574]
[1766581263729,5.64336286,2936.2,2935.5,2.26426574]
[1766581263934,0.04251522,2936.1,2935.5,2.26426574]
[1766581264232,2.2376,2936.2,2935.5,2.26426574]
[1766581264559,2.28011522,2936.1,2935.6,3.47916502]
[1766581265058,2.2376,2936.0,2935.6,3.47916502]
[1766581266154,2.2376,2936.0,2935.6,1.02253845]
[1766581266360,2.2376,2935.8,2935.3,2.2302]
[1766581266763,2.2376,2935.8,2935.4,1.0226221]
[1766581267334,0.04251522,2935.7,2935.3,2.2302]
[1766581267533,2.2376,2935.7,2935.3,2.2302]
[1766581267734,2.2376,2935.7,2935.3,3.25288485]
[1766581268863,2.2376,2935.7,2935.3,1.02268485]
[1766581270132,2.2396,2935.9,2935.4,2.2302]
[1766581270332,3.1326,2935.9,2935.5,0.03406574]
[1766581271761,0.002,2935.9,2935.5,2.26426574]
[1766581272074,0.002,2935.9,2935.5,2.2302]
[1766581272439,0.002,2935.9,2935.5,3.25278724]
[1766581272639,0.002,2935.9,2935.5,3.95161615]
[1766581273039,0.93551522,2936.3,2935.6,2.2302]
[1766581273240,0.93551522,2936.3,2935.8,2.2302]
[1766581273456,2.2376,2936.2,2935.8,2.2302]
[1766581273638,2.2376,2936.2,2935.5,2.92902891]
[1766581273835,2.2376,2936.2,2935.6,0.6664361]
[1766581274070,2.2376,2936.2,2935.7,3.25273148]
[1766581274561,2.2376,2936.0,2935.7,1.02253148]
[1766581275267,2.2376,2936.0,2935.5,2.2302]
[1766581275570,2.28211522,2936.2,2935.7,2.2302]
[1766581277745,2.2396,2936.2,2935.8,2.26426226]
[1766581278042,3.1326,2936.2,2935.8,2.26426226]
[1766581279268,3.1326,2936.2,2935.8,2.2302]
[1766581279845,3.17511522,2936.2,2935.8,2.2302]
[1766581281183,2.2396,2936.5,2935.9,0.35933076]
[1766581281343,0.002,2936.5,2936.1,2.2302]
[1766581281543,0.002,2936.5,2936.0,3.40597944]
[1766581281544,0.002,2936.5,2936.2,2.26425762]
[1766581281781,3.1306,2936.7,2936.3,2.2302]
[1766581282670,0.002,2937.1,2936.5,2.2302]
[1766581282975,0.002,2937.1,2936.2,0.56702371]
[1766581282976,0.002,2937.1,2936.6,2.26425298]
[1766581283273,5.64436454,2937.1,2936.6,2.26425298]
[1766581283777,5.64436454,2937.1,2936.6,2.2302]
[1766581283778,2.2396,2937.1,2936.6,2.2302]
[1766581285755,0.002,2937.1,2936.7,2.2302]
[1766581286156,0.002,2937.1,2936.8,0.03405066]
[1766581286378,0.002,2937.2,2936.8,2.2302]
[1766581286676,0.002,2937.4,2937.0,2.2302]
[1766581287592,3.40639214,2937.4,2936.9,1.02204378]
[1766581287878,2.2376,2937.3,2936.9,1.02204378]
[1766581288180,2.2376,2937.3,2936.4,2.2302]
[1766581288361,2.2376,2937.3,2936.4,2.59922237]
[1766581288557,2.2376,2937.3,2936.6,3.25240049]
[1766581288762,2.2376,2937.1,2935.7,3.88]
[1766581288962,2.2376,2936.9,2936.0,2.26425994]
[1766581289163,2.55066,2936.9,2936.0,2.83130418]
[1766581289682,2.2376,2936.7,2936.0,2.83130418]
[1766581289854,3.1306,2936.6,2936.0,2.26425994]
[1766581293556,2.2363,2936.5,2936.0,2.2302]
[1766581297398,2.2363,2936.5,2936.1,2.37315878]
[1766581297597,0.893,2936.6,2936.1,2.37315878]
[1766581297969,0.895,2936.6,2936.1,2.37315878]
[1766581300375,0.895,2936.6,2936.1,2.3391]
[1766581300578,0.895,2936.6,2936.1,2.57651599]
[1766581300778,0.895,2936.6,2936.3,2.3391]
[1766581301591,3.1516,2936.6,2936.1,0.23741599]
[1766581302309,3.1516,2936.6,2936.1,2.57651599]
[1766581302782,2.2566,2936.5,2936.1,2.57651599]
[1766581305695,2.2566,2936.5,2936.1,2.3391]
[1766581316210,0.895,2936.6,2936.1,2.3391]
[1766581320445,2.2566,2936.5,2935.5,0.001]
[1766581320727,2.2566,2936.1,2935.5,0.001]
[1766581320928,2.2566,2935.9,2935.5,0.001]
[1766581321294,2.1858,2935.8,2935.5,0.001]
[1766581325801,2.1858,2935.7,2935.5,0.001]
[1766581331703,2.18409677,2935.7,2935.5,0.001]
[1766581332139,2.1858,2935.6,2935.1,2.3324]
[1766581333203,2.1858,2935.6,2935.1,2.90656595]
[1766581334042,6.8115251,2936.2,2935.1,3.98119213]
[1766581334249,3.0788,2936.1,2935.5,2.3324]
[1766581334537,3.0788,2936.1,2935.6,2.36646458]
[1766581334738,5.59137635,2936.4,2935.8,2.3324]
[1766581334941,5.59135466,2936.4,2935.9,2.3324]
[1766581335817,0.002,2936.0,2935.9,2.3324]
[1766581342953,3.40739393,2936.6,2935.9,2.3324]
[1766581343325,5.59319393,2936.6,2935.9,2.3324]
[1766581343518,2.1878,2936.6,2936.1,2.3324]
[1766581344035,2.1878,2936.6,2936.1,2.36645878]
[1766581345835,0.002,2936.6,2936.1,2.36645878]
[1766581346036,3.40487519,2937.0,2936.2,2.3324]
[1766581346351,6.48367519,2937.0,2936.2,2.3324]
[1766581346550,6.48367519,2937.0,2936.4,2.3324]
[1766581346850,2.1858,2936.9,2936.4,2.3324]
[1766581347045,5.59081393,2936.9,2936.4,2.3324]
[1766581347251,2.1858,2936.8,2936.4,2.3324]
[1766581349154,3.40514875,2936.8,2936.3,0.23324]
[1766581349454,2.1858,2936.7,2935.7,2.3324]
[1766581349631,2.1858,2936.7,2935.8,2.3324]
[1766581351042,2.1858,2936.7,2935.9,2.3324]
[1766581351454,4.29829864,2936.6,2935.9,2.3324]
[1766581351752,2.3198,2936.5,2935.9,2.3334]
[1766581351956,2.3198,2936.5,2936.0,0.23334]
[1766581354360,2.3198,2936.5,2936.0,2.33874]
[1766581356163,2.3198,2936.4,2936.0,0.23334]
[1766581356457,2.3198,2936.3,2935.9,0.001]
[1766581358958,2.1286,2936.2,2935.6,0.68331493]
[1766581359463,2.1286,2936.2,2935.6,2.99521493]
[1766581364563,2.1286,2936.2,2935.7,2.3119]
[1766581368974,3.40561825,2936.4,2935.7,2.3119]
[1766581369174,3.40570667,2936.3,2935.7,2.3119]
[1766581369376,2.1286,2936.2,2935.7,2.3119]
[1766581372161,3.40576534,2936.2,2935.7,2.3119]
[1766581372362,2.1286,2936.1,2935.7,2.3119]
[1766581374657,2.1286,2936.1,2935.6,0.001]
[1766581380886,2.1286,2936.1,2935.6,2.3129]
[1766581381190,2.1286,2936.1,2935.6,2.54429]
[1766581381689,2.1286,2936.1,2935.6,2.3129]
[1766581384899,3.40589415,2936.1,2935.6,2.3129]
[1766581385065,5.66069415,2936.1,2935.6,2.3129]
[1766581385589,2.2548,2936.1,2935.6,2.3129]
[1766581387371,0.895,2936.2,2935.6,2.3129]
[1766581387596,0.895,2936.2,2935.7,2.2505]
[1766581387994,3.40558514,2936.4,2935.7,2.2505]
[1766581388589,5.66038514,2936.4,2935.7,2.2505]
[1766581393096,5.66038514,2936.4,2935.7,2.28456342]
[1766581394003,5.66038514,2936.4,2935.7,2.2505]
[1766581394202,2.2548,2936.4,2935.8,5.65672658]
[1766581394776,2.2548,2936.4,2935.9,2.2505]
[1766581394978,2.2548,2936.4,2936.0,2.2505]
[1766581395177,2.2548,2936.4,2935.9,3.44015217]
[1766581395178,2.2568,2936.6,2936.1,2.28455878]
[1766581395579,0.002,2936.6,2936.2,2.2505]
[1766581395790,0.002,2936.8,2936.4,2.2505]
[1766581396384,2.2568,2936.8,2936.4,2.2505]
[1766581397622,0.002,2936.8,2936.5,2.2505]
[1766581399114,0.002,2937.1,2936.5,2.28455414]
[1766581399480,0.002,2937.2,2936.6,6.81059728]
[1766581399681,2.2548,2937.5,2936.8,2.2505]
[1766581399893,2.2548,2937.5,2937.0,2.2505]
[1766581401516,2.2548,2937.5,2937.1,5.65521894]
[1766581402112,2.2548,2937.5,2937.1,2.2505]
[1766581404115,0.002,2937.6,2937.2,2.2505]
[1766581404312,0.002,2937.7,2937.4,2.2505]
[1766581406202,2.2548,2937.6,2936.9,3.40492622]
[1766581406404,2.2548,2937.6,2936.9,4.29792622]
[1766581406585,2.2548,2937.6,2936.8,2.2505]
[1766581406787,2.48068,2937.6,2936.8,2.2505]
[1766581407584,2.2548,2937.4,2936.8,2.2505]
[1766581408087,2.2548,2937.4,2936.8,5.65554355]
[1766581408819,2.2548,2937.4,2936.8,2.2505]
[1766581410613,2.2548,2937.4,2936.7,3.40513198]
[1766581410815,2.2548,2937.2,2936.6,2.2505]
[1766581411296,2.2548,2937.2,2936.6,5.65578582]
[1766581414925,2.2548,2937.2,2936.7,2.2746]
[1766581416022,2.2548,2937.2,2936.7,3.40517324]
[1766581416199,0.002,2937.4,2936.8,2.2746]
[1766581416399,0.002,2937.4,2936.8,2.30865066]
[1766581417001,2.2466,2937.4,2936.8,2.30865066]
[1766581417729,2.2466,2937.4,2936.8,2.30965066]
[1766581418132,2.2466,2937.4,2936.8,3.44005692]
[1766581418429,0.002,2937.4,2936.9,2.2746]
[1766581419509,0.002,2937.4,2936.9,0.98901856]
[1766581419710,0.002,2937.7,2937.1,2.2345]
[1766581421024,2.1508,2937.7,2937.1,2.2345]
[1766581422327,2.1508,2937.7,2937.0,2.2345]
[1766581422510,2.1508,2937.7,2937.1,2.2345]
[1766581423230,2.1508,2937.7,2937.2,2.2345]
[1766581423406,0.002,2937.7,2937.2,2.2345]
[1766581423609,0.002,2937.7,2937.4,2.2345]
[1766581424131,2.1508,2937.7,2937.1,3.32712261]
[1766581424327,2.1508,2937.7,2937.2,2.2345]
[1766581425035,0.002,2937.7,2937.2,2.2345]
[1766581427434,0.002,2937.7,2937.2,3.40456784]
[1766581427734,0.002,2937.8,2937.3,2.2345]
[1766581429527,3.40369313,2938.0,2937.3,2.2345]
[1766581429728,5.5524206,2938.1,2937.4,2.2345]
[1766581430125,4.29648766,2938.2,2937.4,2.26854371]
[1766581430322,6.44528766,2938.2,2937.4,2.26854371]
[1766581430516,2.1488,2938.1,2937.5,2.2345]
[1766581431519,2.1488,2938.1,2937.6,2.2345]
[1766581431725,3.4053844,2938.3,2937.6,2.2345]
[1766581431925,5.5541844,2938.3,2937.6,2.2345]
[1766581433342,2.1488,2938.2,2937.4,3.19617197]
[1766581433547,2.1488,2938.2,2937.6,2.2345]
[1766581433716,0.002,2938.1,2937.6,2.2345]
[1766581435456,2.1508,2938.1,2937.6,2.2345]
[1766581439142,0.002,2938.4,2937.7,2.2345]
[1766581439343,0.002,2938.4,2937.6,3.40404432]
[1766581439344,2.1488,2938.3,2937.8,2.79835443]
[1766581439535,2.1488,2938.3,2937.8,2.2345]
[1766581439735,2.1488,2938.3,2937.4,3.40431459]
[1766581439736,2.1488,2938.3,2937.5,2.2345]
[1766581441740,2.1432,2938.1,2937.5,2.2345]
[1766581441947,2.1452,2938.1,2937.5,2.2345]
[1766581442120,0.002,2938.1,2937.6,2.1016]
[1766581442321,0.002,2938.1,2937.8,2.1016]
[1766581444947,0.894,2938.1,2937.0,0.001]
[1766581445118,2.1432,2937.8,2937.0,0.001]
[1766581445647,2.1432,2937.8,2937.0,2.1026]
[1766581445827,2.1432,2937.8,2937.0,2.65345371]
[1766581446228,3.40402355,2937.7,2937.0,2.65345371]
[1766581446428,2.1432,2937.6,2937.0,2.65345371]
[1766581446640,2.1432,2937.6,2937.1,2.1016]
[1766581450432,5.54704449,2937.9,2937.2,2.1016]
[1766581451354,5.54704449,2937.9,2937.3,2.1016]
[1766581453460,2.1432,2937.9,2937.3,2.1016]
[1766581456159,2.1432,2937.8,2937.3,2.1026]
[1766581457464,2.1432,2937.8,2937.3,0.001]
[1766581458866,3.40402355,2937.7,2937.3,0.001]
[1766581459056,2.1432,2937.6,2937.3,0.001]
[1766581462768,3.40385135,2937.9,2937.3,2.1026]
[1766581462769,5.54705135,2937.9,2937.3,2.1026]
[1766581462934,6.53152772,2937.9,2937.3,2.1026]
[1766581463137,4.38832772,2937.9,2937.3,2.1026]
[1766581463435,2.1432,2937.8,2937.3,0.001]
[1766581464357,3.40402355,2937.7,2937.3,0.001]
[1766581464668,2.1432,2937.6,2937.3,0.001]
[1766581466573,0.93355211,2937.9,2937.3,0.001]
[1766581466760,2.1432,2938.0,2937.3,0.894]
[1766581468879,3.40379182,2937.9,2937.3,0.894]
[1766581469179,2.1432,2937.8,2937.3,0.894]
[1766581469386,2.1432,2937.8,2937.3,0.001]
[1766581469568,2.1432,2937.6,2937.0,0.001]
[1766581471470,2.2632,2937.4,2936.2,3.40573125]
[1766581471768,2.2632,2937.4,2936.1,0.001]
[1766581472571,2.2632,2937.4,2937.0,0.001]
[1766581472870,2.2632,2937.2,2937.0,0.001]
[1766581473440,3.40471894,2937.1,2937.0,0.001]
[1766581473641,5.66791894,2937.1,2937.0,0.001]
[1766581480881,3.40451127,2937.3,2937.0,0.001]
[1766581481580,8.70732254,2937.3,2937.0,0.001]
[1766581481765,1.8983,2937.2,2937.0,0.001]
[1766581482246,1.8983,2937.2,2936.2,3.40576255]
[1766581482452,1.8983,2937.2,2936.3,0.34067626]
[1766581482855,5.30299681,2937.2,2936.3,4.63925558]
[1766581483056,5.30299681,2937.2,2936.3,1.23367626]
[1766581483262,5.30299681,2937.2,2936.3,0.893]
[1766581483779,8.70769362,2937.2,2936.3,0.893]
[1766581483992,1.8983,2937.1,2936.3,0.893]
[1766581485276,1.8983,2936.9,2936.3,0.893]
[1766581485672,1.8983,2936.9,2936.3,0.894]
[1766581487281,3.40506673,2936.8,2936.3,0.894]
[1766581488470,5.30330584,2936.9,2936.3,0.894]
[1766581489266,3.40500584,2936.9,2936.3,0.894]
[1766581489471,3.40471894,2937.1,2936.3,0.894]
[1766581489676,8.70773788,2937.1,2936.3,0.894]
[1766581492657,8.70973788,2937.1,2936.3,0.894]
[1766581493067,1.8983,2937.0,2936.3,0.894]
[1766581493465,6.80990158,2936.9,2936.3,0.894]
[1766581493658,8.70820158,2936.9,2936.3,1e-08]
[1766581494061,1.8983,2936.8,2936.3,1e-08]
[1766581495085,3.40495079,2936.9,2936.3,1e-08]
[1766581495288,5.30317867,2937.0,2936.3,1e-08]
[1766581495289,6.1961739,2937.0,2936.3,1e-08]
[1766581496060,9.6010478,2937.0,2936.3,1e-08]
[1766581508287,1.1579,2936.9,2936.3,1e-08]
[1766581510099,7.96803346,2936.8,2936.3,1e-08]
[1766581510395,6.81013346,2936.8,2936.3,1e-08]
[1766581510596,1.1579,2936.7,2936.3,1e-08]
[1766581512096,4.56310747,2936.7,2936.3,1e-08]
[1766581513198,3.40513984,2936.8,2936.3,1e-08]
[1766581515213,3.40495079,2936.9,2936.3,1e-08]
[1766581515393,4.29786134,2937.0,2936.3,1e-08]
[1766581515394,4.29784745,2937.0,2936.3,1e-08]
[1766581516276,3.40495079,2936.9,2936.3,1e-08]
[1766581517302,6.80990158,2936.9,2936.3,1e-08]
[1766581518370,3.40495079,2936.9,2936.3,1e-08]
[1766581521500,3.40467597,2937.2,2936.3,1e-08]
[1766581521702,3.40467597,2937.2,2936.3,0.34408792]
[1766581522607,3.40478368,2937.1,2936.3,0.34408792]
[1766581523178,7.96687422,2937.3,2936.3,0.34408792]
[1766581528281,8.85987422,2937.3,2936.3,0.34408792]
[1766581528791,8.86187422,2937.3,2936.3,0.34408792]
[1766581530225,8.86187422,2937.3,2936.4,0.57041693]
[1766581532113,8.86187422,2937.3,2936.3,0.34408792]
[1766581535612,7.96887422,2937.3,2936.3,0.34408792]
[1766581535814,8.86187422,2937.3,2936.3,0.34408792]
[1766581537114,8.86187422,2937.3,2936.3,3.74971155]
[1766581537820,0.9083,2937.2,2936.3,0.34408792]
[1766581538017,0.9083,2937.2,2936.4,0.91099135]
[1766581539418,7.80213788,2937.1,2936.3,0.34408792]
[1766581539814,6.80943788,2937.1,2936.3,0.34408792]
[1766581539988,0.9927,2937.0,2936.3,0.34408792]
[1766581541009,0.9927,2937.0,2936.4,0.0340553]
[1766581541211,3.40495079,2936.9,2936.4,0.0340553]
[1766581541417,3.40495079,2936.9,2936.3,0.03405647]
[1766581542419,6.80990158,2936.9,2936.3,0.03405647]
[1766581542619,0.9927,2936.8,2936.3,1e-08]
[1766581543421,4.39788268,2936.7,2936.3,1e-08]
[1766581543803,0.9927,2936.6,2936.3,1e-08]
[1766581545902,4.3981146,2936.5,2936.3,1e-08]
[1766581546302,0.9927,2936.4,2936.3,1e-08]
[1766581546700,0.9927,2936.4,2936.1,0.001]
[1766581547024,0.9927,2936.3,2935.6,0.001]
[1766581547925,0.9927,2936.2,2935.6,0.001]
[1766581549928,8.7655158,2936.5,2935.6,0.001]
[1766581549929,0.9927,2936.0,2935.6,0.001]
[1766581552128,3.40609426,2936.0,2935.6,0.001]
[1766581552333,0.893,2936.1,2935.6,0.001]
[1766581552634,5.29157528,2936.2,2935.6,0.001]
[1766581553129,8.69745056,2936.2,2935.6,0.001]
[1766581553529,7.70475056,2936.2,2935.6,0.001]
[1766581553712,0.9927,2936.1,2935.6,0.001]
[1766581557058,3.40599455,2936.0,2935.6,0.001]
[1766581558430,0.9927,2936.0,2935.6,0.001]
[1766581559128,0.893,2936.3,2935.6,0.001]
[1766581559329,3.40572408,2936.3,2935.6,0.001]
[1766581560539,6.81144816,2936.3,2935.6,0.001]
[1766581561237,7.80414816,2936.3,2935.6,0.001]
[1766581561427,4.39842408,2936.3,2935.6,0.001]
[1766581561612,3.40559457,2936.4,2935.6,0.001]
[1766581561813,5.26497863,2936.5,2935.7,0.09877552]
[1766581562137,3.40536133,2936.6,2935.8,0.46009215]
[1766581562342,6.81075657,2936.6,2935.8,0.46009215]
[1766581562650,4.37186133,2936.6,2935.8,0.46009215]
[1766581562953,4.29820459,2936.7,2935.9,4.56585688]
[1766581562954,4.29824183,2936.7,2935.9,4.56585688]
[1766581563136,7.70348366,2936.7,2936.0,0.03405994]
[1766581563345,7.70348366,2936.7,2936.1,0.45999168]
[1766581563640,7.70348366,2936.7,2936.2,0.03405762]
[1766581563815,7.70348366,2936.7,2936.0,0.03405994]
[1766581564727,4.29824183,2936.7,2936.0,0.03405994]
[1766581565217,7.70348366,2936.7,2936.0,0.03405994]
[1766581566526,8.66998366,2936.7,2935.9,0.09877552]
[1766581567345,8.66998366,2936.7,2936.0,0.43056775]
[1766581567948,0.9665,2936.6,2936.0,0.39650781]
[1766581568246,0.9665,2936.6,2935.7,0.09877552]
[1766581568945,0.9665,2936.4,2935.6,0.001]
[1766581570045,3.40564656,2936.3,2935.6,0.001]
[1766581570269,4.37214656,2936.3,2935.6,0.001]
[1766581571750,0.9665,2936.2,2935.6,0.001]
[1766581572118,4.37237854,2936.1,2935.6,0.001]
[1766581572520,3.40581316,2936.2,2935.6,0.001]
[1766581573349,3.40568625,2936.3,2935.6,0.44104455]
[1766581573553,4.37208655,2936.4,2935.7,0.03406342]
[1766581575956,4.37208655,2936.4,2935.6,0.44104455]
[1766581576162,0.9665,2936.3,2935.6,0.44104455]
[1766581576331,1.8595,2936.3,2935.6,0.001]
[1766581576530,0.9665,2936.2,2935.6,0.001]
[1766581578450,0.9665,2936.0,2935.6,0.001]
[1766581580659,0.9665,2935.9,2935.6,0.001]
[1766581586671,4.37262748,2935.9,2935.6,0.001]
[1766581586967,0.9665,2935.9,2935.6,0.001]
[1766581587334,0.9665,2935.8,2935.2,0.03406922]
[1766581587538,0.9665,2935.8,2935.1,0.03507038]
[1766581587736,0.9665,2935.8,2935.1,3.44210153]
[1766581588239,0.9665,2935.8,2935.1,0.03507038]
[1766581588555,0.9665,2935.8,2935.1,0.001]
[1766581588861,0.9665,2935.6,2935.1,0.001]
[1766581589034,0.9665,2935.6,2935.1,0.03507038]
[1766581589451,0.9665,2935.6,2935.5,0.001]
[1766581599069,4.36093804,2935.8,2935.5,0.001]
[1766581600869,0.9547,2935.7,2935.1,0.001]
[1766581601170,0.9547,2935.6,2935.1,0.001]
[1766581604972,0.9547,2935.6,2935.5,0.001]
[1766581612979,0.9567,2935.6,2935.5,0.001]
[1766581623172,0.9567,2935.6,2935.1,0.001]
[1766581634097,0.9758,2935.5,2935.1,0.001]
[1766581634285,0.9758,2935.3,2935.1,0.001]
[1766581636298,4.38432855,2935.6,2935.1,0.001]
[1766581636499,0.9778,2935.6,2935.1,0.001]
[1766581636874,0.002,2935.6,2935.1,0.001]
[1766581647815,0.9778,2935.6,2935.1,0.001]
[1766581648810,4.38431848,2935.6,2935.1,0.001]
[1766581649106,0.9758,2935.5,2935.1,0.001]
[1766581651989,0.002,2935.6,2935.1,0.001]
[1766581654189,0.9478,2935.6,2935.1,0.001]
[1766581654713,0.9458,2935.5,2935.1,0.001]
[1766581657126,3.40669074,2935.4,2935.1,0.001]
[1766581657716,4.33179074,2935.4,2935.1,0.001]
[1766581659116,0.9251,2935.4,2935.1,0.001]
[1766581661623,3.40680679,2935.3,2935.1,0.001]
[1766581665435,4.33185028,2935.4,2935.1,0.001]
[1766581665631,0.9251,2935.4,2935.1,0.001]
[1766581666427,4.33179797,2935.4,2935.1,0.001]
[1766581669336,4.73044923,2935.4,2935.1,0.001]
[1766581672845,0.9251,2935.3,2935.1,0.001]
[1766581674744,4.3319531,2935.3,2935.1,0.001]
[1766581677012,3.80544296,2935.4,2935.1,0.001]
[1766581680757,8.13728431,2935.4,2935.1,0.001]
[1766581680928,0.81392843,2935.3,2935.1,0.001]
[1766581682217,1.72702843,2935.3,2935.1,0.001]
[1766581683058,3.40692286,2935.2,2935.1,0.001]
[1766581683221,4.32002286,2935.2,2934.8,0.001]
[1766581683420,5.17409919,2935.2,2934.8,0.001]
[1766581683850,0.9131,2935.1,2934.8,0.001]
[1766581684653,4.26099919,2935.2,2934.8,0.001]
[1766581686416,0.9131,2935.1,2934.4,0.1373789]